Workbook

Sheet 0
A1: =+A2+B37 -> 1242 | B1: =+A1+B37 -> 1243 | C1: =+B1+B37 -> 1244 | D1: =+C1+B37 -> 1245 | E1: =+D1+B37 -> 1246 | F1: =+E1+B37 -> 1247 | G1: =+F1+B37 -> 1248 | H1: =+G1+B37 -> 1249 | I1: =+H1+B37 -> 1250 | J1: =+I1+B37 -> 1251 | K1: =+J1+B37 -> 1252 | L1: =+K1+B37 -> 1253 | M1: =+L1+B37 -> 1254 | N1: =+M1+B37 -> 1255 | O1: =+N1+B37 -> 1256 | P1: =+O1+B37 -> 1257 | Q1: =+P1+B37 -> 1258 | R1: =+Q1+B37 -> 1259 | S1: =+R1+B37 -> 1260 | T1: =+S1+B37 -> 1261 | U1: =+T1+B37 -> 1262 | V1: =+U1+B37 -> 1263 | W1: =+V1+B37 -> 1264 | X1: =+W1+B37 -> 1265 | Y1: =+X1+B37 -> 1266 | Z1: =+Y1+B37 -> 1267 | AA1: =+Z1+B37 -> 1268 | AB1: =+AA1+B37 -> 1269 | AC1: =+AB1+B37 -> 1270 | AD1: =+AC1+B37 -> 1271 | AE1: =+AD1+B37 -> 1272 | AF1: =+AE1+B37 -> 1273 | AG1: =+AF1+B37 -> 1274 | AH1: =+AG1+B37 -> 1275 | AI1: =+AH1+B37 -> 1276
A2: =+A3+B37 -> 1241 | B2: =+B3+B37 -> 1112 | C2: =+B2+B37 -> 1113 | D2: =+C2+B37 -> 1114 | E2: =+D2+B37 -> 1115 | F2: =+E2+B37 -> 1116 | G2: =+F2+B37 -> 1117 | H2: =+G2+B37 -> 1118 | I2: =+H2+B37 -> 1119 | J2: =+I2+B37 -> 1120 | K2: =+J2+B37 -> 1121 | L2: =+K2+B37 -> 1122 | M2: =+L2+B37 -> 1123 | N2: =+M2+B37 -> 1124 | O2: =+N2+B37 -> 1125 | P2: =+O2+B37 -> 1126 | Q2: =+P2+B37 -> 1127 | R2: =+Q2+B37 -> 1128 | S2: =+R2+B37 -> 1129 | T2: =+S2+B37 -> 1130 | U2: =+T2+B37 -> 1131 | V2: =+U2+B37 -> 1132 | W2: =+V2+B37 -> 1133 | X2: =+W2+B37 -> 1134 | Y2: =+X2+B37 -> 1135 | Z2: =+Y2+B37 -> 1136 | AA2: =+Z2+B37 -> 1137 | AB2: =+AA2+B37 -> 1138 | AC2: =+AB2+B37 -> 1139 | AD2: =+AC2+B37 -> 1140 | AE2: =+AD2+B37 -> 1141 | AF2: =+AE2+B37 -> 1142 | AG2: =+AF2+B37 -> 1143 | AH2: =+AG2+B37 -> 1144 | AI2: =+AI1+B37 -> 1277
A3: =+A4+B37 -> 1240 | B3: =+B4+B37 -> 1111 | C3: =+C4+B37 -> 990 | D3: =+C3+B37 -> 991 | E3: =+D3+B37 -> 992 | F3: =+E3+B37 -> 993 | G3: =+F3+B37 -> 994 | H3: =+G3+B37 -> 995 | I3: =+H3+B37 -> 996 | J3: =+I3+B37 -> 997 | K3: =+J3+B37 -> 998 | L3: =+K3+B37 -> 999 | M3: =+L3+B37 -> 1000 | N3: =+M3+B37 -> 1001 | O3: =+N3+B37 -> 1002 | P3: =+O3+B37 -> 1003 | Q3: =+P3+B37 -> 1004 | R3: =+Q3+B37 -> 1005 | S3: =+R3+B37 -> 1006 | T3: =+S3+B37 -> 1007 | U3: =+T3+B37 -> 1008 | V3: =+U3+B37 -> 1009 | W3: =+V3+B37 -> 1010 | X3: =+W3+B37 -> 1011 | Y3: =+X3+B37 -> 1012 | Z3: =+Y3+B37 -> 1013 | AA3: =+Z3+B37 -> 1014 | AB3: =+AA3+B37 -> 1015 | AC3: =+AB3+B37 -> 1016 | AD3: =+AC3+B37 -> 1017 | AE3: =+AD3+B37 -> 1018 | AF3: =+AE3+B37 -> 1019 | AG3: =+AF3+B37 -> 1020 | AH3: =+AH2+B37 -> 1145 | AI3: =+AI2+B37 -> 1278
A4: =+A5+B37 -> 1239 | B4: =+B5+B37 -> 1110 | C4: =+C5+B37 -> 989 | D4: =+D5+B37 -> 755 | E4: =+D4+B37 -> 756 | F4: =+E4+B37 -> 757 | G4: =+F4+B37 -> 758 | H4: =+G4+B37 -> 759 | I4: =+H4+B37 -> 760 | J4: =+I4+B37 -> 761 | K4: =+J4+B37 -> 762 | L4: =+K4+B37 -> 763 | M4: =+L4+B37 -> 764 | N4: =+M4+B37 -> 765 | O4: =+N4+B37 -> 766 | P4: =+O4+B37 -> 767 | Q4: =+P4+B37 -> 768 | R4: =+Q4+B37 -> 769 | S4: =+R4+B37 -> 770 | T4: =+S4+B37 -> 771 | U4: =+T4+B37 -> 772 | V4: =+U4+B37 -> 773 | W4: =+V4+B37 -> 774 | X4: =+W4+B37 -> 775 | Y4: =+X4+B37 -> 776 | Z4: =+Y4+B37 -> 777 | AA4: =+Z4+B37 -> 778 | AB4: =+AA4+B37 -> 779 | AC4: =+AB4+B37 -> 780 | AD4: =+AC4+B37 -> 781 | AE4: =+AD4+B37 -> 782 | AF4: =+AE4+B37 -> 783 | AG4: =+AG3+B37 -> 1021 | AH4: =+AH3+B37 -> 1146 | AI4: =+AI3+B37 -> 1279
A5: =+A6+B37 -> 1238 | B5: =+B6+B37 -> 1109 | C5: =+C6+B37 -> 988 | D5: =+D6+B37 -> 754 | E5: =+E6+B37 -> 650 | F5: =+E5+B37 -> 651 | G5: =+F5+B37 -> 652 | H5: =+G5+B37 -> 653 | I5: =+H5+B37 -> 654 | J5: =+I5+B37 -> 655 | K5: =+J5+B37 -> 656 | L5: =+K5+B37 -> 657 | M5: =+L5+B37 -> 658 | N5: =+M5+B37 -> 659 | O5: =+N5+B37 -> 660 | P5: =+O5+B37 -> 661 | Q5: =+P5+B37 -> 662 | R5: =+Q5+B37 -> 663 | S5: =+R5+B37 -> 664 | T5: =+S5+B37 -> 665 | U5: =+T5+B37 -> 666 | V5: =+U5+B37 -> 667 | W5: =+V5+B37 -> 668 | X5: =+W5+B37 -> 669 | Y5: =+X5+B37 -> 670 | Z5: =+Y5+B37 -> 671 | AA5: =+Z5+B37 -> 672 | AB5: =+AA5+B37 -> 673 | AC5: =+AB5+B37 -> 674 | AD5: =+AC5+B37 -> 675 | AE5: =+AD5+B37 -> 676 | AF5: =+AF4+B37 -> 784 | AG5: =+AG4+B37 -> 1022 | AH5: =+AH4+B37 -> 1147 | AI5: =+AI4+B37 -> 1280
A6: =+A7+B37 -> 1237 | B6: =+B7+B37 -> 1108 | C6: 987 | D6: =+D7+B37 -> 753 | E6: =+E7+B37 -> 649 | F6: =+F7+B37 -> 552 | G6: =+F6+B37 -> 553 | H6: =+G6+B37 -> 554 | I6: =+H6+B37 -> 555 | J6: =+I6+B37 -> 556 | K6: =+J6+B37 -> 557 | L6: =+K6+B37 -> 558 | M6: =+L6+B37 -> 559 | N6: =+M6+B37 -> 560 | O6: =+N6+B37 -> 561 | P6: =+O6+B37 -> 562 | Q6: =+P6+B37 -> 563 | R6: =+Q6+B37 -> 564 | S6: =+R6+B37 -> 565 | T6: =+S6+B37 -> 566 | U6: =+T6+B37 -> 567 | V6: =+U6+B37 -> 568 | W6: =+V6+B37 -> 569 | X6: =+W6+B37 -> 570 | Y6: =+X6+B37 -> 571 | Z6: =+Y6+B37 -> 572 | AA6: =+Z6+B37 -> 573 | AB6: =+AA6+B37 -> 574 | AC6: =+AB6+B37 -> 575 | AD6: =+AC6+B37 -> 576 | AE6: =+AE5+B37 -> 677 | AF6: =+AF5+B37 -> 785 | AG6: =+AG5+B37 -> 1023 | AH6: =+AH5+B37 -> 1148 | AI6: =+AI5+B37 -> 1281
A7: =+A8+B37 -> 1236 | B7: =+B8+B37 -> 1107 | C7: =+C8+B37 -> 865 | D7: =+D8+B37 -> 752 | E7: =+E8+B37 -> 648 | F7: =+F8+B37 -> 551 | G7: =+G8+B37 -> 462 | H7: =+G7+B37 -> 463 | I7: =+H7+B37 -> 464 | J7: =+I7+B37 -> 465 | K7: =+J7+B37 -> 466 | L7: =+K7+B37 -> 467 | M7: =+L7+B37 -> 468 | N7: =+M7+B37 -> 469 | O7: =+N7+B37 -> 470 | P7: =+O7+B37 -> 471 | Q7: =+P7+B37 -> 472 | R7: =+Q7+B37 -> 473 | S7: =+R7+B37 -> 474 | T7: =+S7+B37 -> 475 | U7: =+T7+B37 -> 476 | V7: =+U7+B37 -> 477 | W7: =+V7+B37 -> 478 | X7: =+W7+B37 -> 479 | Y7: =+X7+B37 -> 480 | Z7: =+Y7+B37 -> 481 | AA7: =+Z7+B37 -> 482 | AB7: =+AA7+B37 -> 483 | AC7: =+AB7+B37 -> 484 | AD7: =+AD6+B37 -> 577 | AE7: =+AE6+B38 -> 677 | AF7: =+AF6+B37 -> 786 | AG7: =+AG6+B37 -> 1024 | AH7: =+AH6+B37 -> 1149 | AI7: =+AI6+B37 -> 1282
A8: =+A9+B37 -> 1235 | B8: =+B9+B37 -> 1106 | C8: =+C9+B37 -> 864 | D8: =+D9+B37 -> 751 | E8: =+E9+B37 -> 647 | F8: =+F9+B37 -> 550 | G8: =+G9+B37 -> 461 | H8: =+H9+B37 -> 380 | I8: =+H8+B37 -> 381 | J8: =+I8+B37 -> 382 | K8: =+J8+B37 -> 383 | L8: =+K8+B37 -> 384 | M8: =+L8+B37 -> 385 | N8: =+M8+B37 -> 386 | O8: =+N8+B37 -> 387 | P8: =+O8+B37 -> 388 | Q8: =+P8+B37 -> 389 | R8: =+Q8+B37 -> 390 | S8: =+R8+B37 -> 391 | T8: =+S8+B37 -> 392 | U8: =+T8+B37 -> 393 | V8: =+U8+B37 -> 394 | W8: =+V8+B37 -> 395 | X8: =+W8+B37 -> 396 | Y8: =+X8+B37 -> 397 | Z8: =+Y8+B37 -> 398 | AA8: =+Z8+B37 -> 399 | AB8: =+AA8+B37 -> 400 | AC8: =+AC7+B37 -> 485 | AD8: =+AD7+B37 -> 578 | AE8: =+AE7+B37 -> 678 | AF8: =+AF7+B37 -> 787 | AG8: =+AG7+B37 -> 1025 | AH8: =+AH7+B37 -> 1150 | AI8: =+AI7+B37 -> 1283
A9: =+A10+B37 -> 1234 | B9: =+B10+B37 -> 1105 | C9: =+C10+B37 -> 863 | D9: =+D10+B37 -> 750 | E9: =+E10+B37 -> 646 | F9: =+F10+B37 -> 549 | G9: =+G10+B37 -> 460 | H9: =+H10+B37 -> 379 | I9: =+I10+B37 -> 306 | J9: =+I9+B37 -> 307 | K9: =+J9+B37 -> 308 | L9: =+K9+B37 -> 309 | M9: =+L9+B37 -> 310 | N9: =+M9+B37 -> 311 | O9: =+N9+B37 -> 312 | P9: =+O9+B37 -> 313 | Q9: =+P9+B37 -> 314 | R9: =+Q9+B37 -> 315 | S9: =+R9+B37 -> 316 | T9: =+S9+B37 -> 317 | U9: =+T9+B37 -> 318 | V9: =+U9+B37 -> 319 | W9: =+V9+B37 -> 320 | X9: =+W9+B37 -> 321 | Y9: =+X9+B37 -> 322 | Z9: =+Y9+B37 -> 323 | AA9: =+Z9+B37 -> 324 | AB9: =+AB8+B37 -> 401 | AC9: =+AC8+B37 -> 486 | AD9: =+AD8+B37 -> 579 | AE9: =+AE8+B37 -> 679 | AF9: =+AF8+B37 -> 788 | AG9: =+AG8+B37 -> 1026 | AH9: =+AH8+B37 -> 1151 | AI9: =+AI8+B37 -> 1284
A10: =+A11+B37 -> 1233 | B10: =+B11+B37 -> 1104 | C10: =+C11+B37 -> 862 | D10: =+D11+B37 -> 749 | E10: =+E11+B37 -> 645 | F10: =+F11+B37 -> 548 | G10: =+G11+B37 -> 459 | H10: =+H11+B37 -> 378 | I10: =+I11+B37 -> 305 | J10: =+J11+B37 -> 240 | K10: =+J10+B37 -> 241 | L10: =+K10+B37 -> 242 | M10: =+L10+B37 -> 243 | N10: =+M10+B37 -> 244 | O10: =+N10+B37 -> 245 | P10: =+O10+B37 -> 246 | Q10: =+P10+B37 -> 247 | R10: =+Q10+B37 -> 248 | S10: =+R10+B37 -> 249 | T10: =+S10+B37 -> 250 | U10: =+T10+B37 -> 251 | V10: =+U10+B37 -> 252 | W10: =+V10+B37 -> 253 | X10: =+W10+B37 -> 254 | Y10: =+X10+B37 -> 255 | Z10: =+Y10+B37 -> 256 | AA10: =+AA9+B37 -> 325 | AB10: =+AB9+B37 -> 402 | AC10: =+AC9+B37 -> 487 | AD10: =+AD9+B37 -> 580 | AE10: =+AE9+B37 -> 680 | AF10: =+AF9+B37 -> 789 | AG10: =+AG9+B37 -> 1027 | AH10: =+AH9+B37 -> 1152 | AI10: =+AI9+B37 -> 1285
A11: =+A12+B37 -> 1232 | B11: =+B12+B37 -> 1103 | C11: =+C12+B37 -> 861 | D11: =+D12+B37 -> 748 | E11: =+E12+B37 -> 644 | F11: =+F12+B37 -> 547 | G11: =+G12+B37 -> 458 | H11: =+H12+B37 -> 377 | I11: =+I12+B37 -> 304 | J11: =+J12+B37 -> 239 | K11: =+K12+B37 -> 182 | L11: =+K11+B37 -> 183 | M11: =+L11+B37 -> 184 | N11: =+M11+B37 -> 185 | O11: =+N11+B37 -> 186 | P11: =+O11+B37 -> 187 | Q11: =+P11+B37 -> 188 | R11: =+Q11+B37 -> 189 | S11: =+R11+B37 -> 190 | T11: =+S11+B37 -> 191 | U11: =+T11+B37 -> 192 | V11: =+U11+B37 -> 193 | W11: =+V11+B37 -> 194 | X11: =+W11+B37 -> 195 | Y11: =+X11+B37 -> 196 | Z11: =+Z10+B37 -> 257 | AA11: =+AA10+B37 -> 326 | AB11: =+AB10+B37 -> 403 | AC11: =+AC10+B37 -> 488 | AD11: =+AD10+B37 -> 581 | AE11: =+AE10+B37 -> 681 | AF11: =+AF10+B37 -> 790 | AG11: =+AG10+B37 -> 1028 | AH11: =+AH10+B37 -> 1153 | AI11: =+AI10+B37 -> 1286
A12: =+A13+B37 -> 1231 | B12: =+B13+B37 -> 1102 | C12: =+C13+B37 -> 860 | D12: =+D13+B37 -> 747 | E12: =+E13+B37 -> 643 | F12: =+F13+B37 -> 546 | G12: =+G13+B37 -> 457 | H12: =+H13+B37 -> 376 | I12: =+I13+B37 -> 303 | J12: =+J13+B37 -> 238 | K12: =+K13+B37 -> 181 | L12: =+L13+B37 -> 132 | M12: =+L12+B37 -> 133 | N12: =+M12+B37 -> 134 | O12: =+N12+B37 -> 135 | P12: =+O12+B37 -> 136 | Q12: =+P12+B37 -> 137 | R12: =+Q12+B37 -> 138 | S12: =+R12+B37 -> 139 | T12: =+S12+B37 -> 140 | U12: =+T12+B37 -> 141 | V12: =+U12+B37 -> 142 | W12: =+V12+B37 -> 143 | X12: =+W12+B37 -> 144 | Y12: =+Y11+B37 -> 197 | Z12: =+Z11+B37 -> 258 | AA12: =+AA11+B37 -> 327 | AB12: =+AB11+B37 -> 404 | AC12: =+AC11+B37 -> 489 | AD12: =+AD11+B37 -> 582 | AE12: =+AE11+B37 -> 682 | AF12: =+AF11+B37 -> 791 | AG12: =+AG11+B37 -> 1029 | AH12: =+AH11+B37 -> 1154 | AI12: =+AI11+B37 -> 1287
A13: =+A14+B37 -> 1230 | B13: =+B14+B37 -> 1101 | C13: =+C14+B37 -> 859 | D13: =+D14+B37 -> 746 | E13: =+E14+B37 -> 642 | F13: =+F14+B37 -> 545 | G13: =+G14+B37 -> 456 | H13: =+H14+B37 -> 375 | I13: =+I14+B37 -> 302 | J13: =+J14+B37 -> 237 | K13: =+K14+B37 -> 180 | L13: =+L14+B37 -> 131 | M13: =+M14+B37 -> 90 | N13: =+M13+B37 -> 91 | O13: =+N13+B37 -> 92 | P13: =+O13+B37 -> 93 | Q13: =+P13+B37 -> 94 | R13: =+Q13+B37 -> 95 | S13: =+R13+B37 -> 96 | T13: =+S13+B37 -> 97 | U13: =+T13+B37 -> 98 | V13: =+U13+B37 -> 99 | W13: =+V13+B37 -> 100 | X13: =+X12+B37 -> 145 | Y13: =+Y12+B37 -> 198 | Z13: =+Z12+B37 -> 259 | AA13: =+AA12+B37 -> 328 | AB13: =+AB12+B37 -> 405 | AC13: =+AC12+B37 -> 490 | AD13: =+AD12+B37 -> 583 | AE13: =+AE12+B37 -> 683 | AF13: =+AF12+B37 -> 792 | AG13: =+AG12+B37 -> 1030 | AH13: =+AH12+B37 -> 1155 | AI13: =+AI12+B37 -> 1288
A14: =+A15+B37 -> 1229 | B14: =+B15+B37 -> 1100 | C14: =+C15+B37 -> 858 | D14: =+D15+B37 -> 745 | E14: =+E15+B37 -> 641 | F14: =+F15+B37 -> 544 | G14: =+G15+B37 -> 455 | H14: =+H15+B37 -> 374 | I14: =+I15+B37 -> 301 | J14: =+J15+B37 -> 236 | K14: =+K15+B37 -> 179 | L14: =+L15+B37 -> 130 | M14: =+M15+B37 -> 89 | N14: =+N15+B37 -> 56 | O14: =+N14+B37 -> 57 | P14: =+O14+B37 -> 58 | Q14: =+P14+B37 -> 59 | R14: =+Q14+B37 -> 60 | S14: =+R14+B37 -> 61 | T14: =+S14+B37 -> 62 | U14: =+T14+B37 -> 63 | V14: =+U14+B37 -> 64 | W14: =+W13+B37 -> 101 | X14: =+X13+B37 -> 146 | Y14: =+Y13+B37 -> 199 | Z14: =+Z13+B37 -> 260 | AA14: =+AA13+B37 -> 329 | AB14: =+AB13+B37 -> 406 | AC14: =+AC13+B37 -> 491 | AD14: =+AD13+B37 -> 584 | AE14: =+AE13+B37 -> 684 | AF14: =+AF13+B37 -> 793 | AG14: =+AG13+B37 -> 1031 | AH14: =+AH13+B37 -> 1156 | AI14: =+AI13+B37 -> 1289 | AL14: 47 | AM14: رقم 1
A15: =+A16+B37 -> 1228 | B15: =+B16+B37 -> 1099 | C15: =+C16+B37 -> 857 | D15: =+D16+B37 -> 744 | E15: =+E16+B37 -> 640 | F15: =+F16+B37 -> 543 | G15: =+G16+B37 -> 454 | H15: =+H16+B37 -> 373 | I15: =+I16+B37 -> 300 | J15: =+J16+B37 -> 235 | K15: =+K16+B37 -> 178 | L15: =+L16+B37 -> 129 | M15: =+M16+B37 -> 88 | N15: =+N16+B37 -> 55 | O15: =+O16+B37 -> 30 | P15: =+O15+B37 -> 31 | Q15: =+P15+B37 -> 32 | R15: =+Q15+B37 -> 33 | S15: =+R15+B37 -> 34 | T15: =+S15+B37 -> 35 | U15: =+T15+B37 -> 36 | V15: =+V14+B37 -> 65 | W15: =+W14+B37 -> 102 | X15: =+X14+B37 -> 147 | Y15: =+Y14+B37 -> 200 | Z15: =+Z14+B37 -> 261 | AA15: =+AA14+B37 -> 330 | AB15: =+AB14+B37 -> 407 | AC15: =+AC14+B37 -> 492 | AD15: =+AD14+B37 -> 585 | AE15: =+AE14+B37 -> 685 | AF15: =+AF14+B37 -> 794 | AG15: =+AG14+B37 -> 1032 | AH15: =+AH14+B37 -> 1157 | AI15: =+AI14+B37 -> 1290 | AL15: 987 | AM15: رقم 2
A16: =+A17+B37 -> 1227 | B16: =+B17+B37 -> 1098 | C16: =+C17+B37 -> 856 | D16: =+D17+B37 -> 743 | E16: =+E17+B37 -> 639 | F16: =+F17+B37 -> 542 | G16: =+G17+B37 -> 453 | H16: =+H17+B37 -> 372 | I16: =+I17+B37 -> 299 | J16: =+J17+B37 -> 234 | K16: =+K17+B37 -> 177 | L16: =+L17+B37 -> 128 | M16: =+M17+B37 -> 87 | N16: =+N17+B37 -> 54 | O16: =+O17+B37 -> 29 | P16: =+P17+B37 -> 12 | Q16: =+P16+B37 -> 13 | R16: =+Q16+B37 -> 14 | S16: =+R16+B37 -> 15 | T16: =+S16+B37 -> 16 | U16: =+U15+B37 -> 37 | V16: =+V15+B37 -> 66 | W16: =+W15+B37 -> 103 | X16: =+X15+B37 -> 148 | Y16: =+Y15+B37 -> 201 | Z16: =+Z15+B37 -> 262 | AA16: =+AA15+B37 -> 331 | AB16: =+AB15+B37 -> 408 | AC16: =+AC15+B37 -> 493 | AD16: =+AD15+B37 -> 586 | AE16: =+AE15+B37 -> 686 | AF16: =+AF15+B37 -> 795 | AG16: =+AG15+B37 -> 1033 | AH16: =+AH15+B37 -> 1158 | AI16: =+AI15+B37 -> 1291
A17: =+A18+B37 -> 1226 | B17: =+B18+B37 -> 1097 | C17: =+C18+B37 -> 855 | D17: =+D18+B37 -> 742 | E17: =+E18+B37 -> 638 | F17: =+F18+B37 -> 541 | G17: =+G18+B37 -> 452 | H17: =+H18+B37 -> 371 | I17: =+I18+B37 -> 298 | J17: =+J18+B37 -> 233 | K17: =+K18+B37 -> 176 | L17: =+L18+B37 -> 127 | M17: =+M18+B37 -> 86 | N17: =+N18+B37 -> 53 | O17: =+O18+B37 -> 28 | P17: =+P18+B37 -> 11 | Q17: =+Q18+B37 -> 2 | R17: =+Q17+B37 -> 3 | S17: =+R17+B37 -> 4 | T17: =+T16+B37 -> 17 | U17: =+U16+B37 -> 38 | V17: =+V16+B37 -> 67 | W17: =+W16+B37 -> 104 | X17: =+X16+B37 -> 149 | Y17: =+Y16+B37 -> 202 | Z17: =+Z16+B37 -> 263 | AA17: =+AA16+B37 -> 332 | AB17: =+AB16+B37 -> 409 | AC17: =+AC16+B37 -> 494 | AD17: =+AD16+B37 -> 587 | AE17: =+AE16+B37 -> 687 | AF17: =+AF16+B37 -> 796 | AG17: =+AG16+B37 -> 1034 | AH17: =+AH16+B37 -> 1159 | AI17: =+AI16+B37 -> 1292
A18: =+A19+B37 -> 1225 | B18: =+B19+B37 -> 1096 | C18: =+C19+B37 -> 854 | D18: =+D19+B37 -> 741 | E18: =+E19+B37 -> 637 | F18: =+F19+B37 -> 540 | G18: =+G19+B37 -> 451 | H18: =+H19+B37 -> 370 | I18: =+I19+B37 -> 297 | J18: =+J19+B37 -> 232 | K18: =+K19+B37 -> 175 | L18: =+L19+B37 -> 126 | M18: =+M19+B37 -> 85 | N18: =+N19+B37 -> 52 | O18: =+O19+B37 -> 27 | P18: =+P19+B37 -> 10 | Q18: =+R18+B37 -> 1 | R18: =+B36 -> 0 | S18: =+S17+B37 -> 5 | T18: =+T17+B37 -> 18 | U18: =+U17+B37 -> 39 | V18: =+V17+B37 -> 68 | W18: =+W17+B37 -> 105 | X18: =+X17+B37 -> 150 | Y18: =+Y17+B37 -> 203 | Z18: =+Z17+B37 -> 264 | AA18: =+AA17+B37 -> 333 | AB18: =+AB17+B37 -> 410 | AC18: =+AC17+B37 -> 495 | AD18: =+AD17+B37 -> 588 | AE18: =+AE17+B37 -> 688 | AF18: =+AF17+B37 -> 797 | AG18: =+AG17+B37 -> 1035 | AH18: =+AH17+B37 -> 1160 | AI18: =+AI17+B37 -> 1293 | AJ18: 180
A19: =+A20+B37 -> 1224 | B19: =+B20+B37 -> 1095 | C19: =+C20+B37 -> 853 | D19: =+D20+B37 -> 740 | E19: =+E20+B37 -> 636 | F19: =+F20+B37 -> 539 | G19: =+G20+B37 -> 450 | H19: =+H20+B37 -> 369 | I19: =+I20+B37 -> 296 | J19: =+J20+B37 -> 231 | K19: =+K20+B37 -> 174 | L19: =+L20+B37 -> 125 | M19: =+M20+B37 -> 84 | N19: =+N20+B37 -> 51 | O19: =+O20+B37 -> 26 | P19: =+Q19+B37 -> 9 | Q19: =+R19+B37 -> 8 | R19: =+S19+B37 -> 7 | S19: =+S18+B37 -> 6 | T19: =+T18+B37 -> 19 | U19: =+U18+B37 -> 40 | V19: =+V18+B37 -> 69 | W19: =+W18+B37 -> 106 | X19: =+X18+B37 -> 151 | Y19: =+Y18+B37 -> 204 | Z19: =+Z18+B37 -> 265 | AA19: =+AA18+B37 -> 334 | AB19: =+AB18+B37 -> 411 | AC19: =+AC18+B37 -> 496 | AD19: =+AD18+B37 -> 589 | AE19: =+AE18+B37 -> 689 | AF19: =+AF18+B37 -> 798 | AG19: =+AG18+B37 -> 1036 | AH19: =+AH18+B37 -> 1161 | AI19: =+AI18+B37 -> 1294
A20: =+A21+B37 -> 1223 | B20: =+B21+B37 -> 1094 | C20: =+C21+B37 -> 852 | D20: =+D21+B37 -> 739 | E20: =+E21+B37 -> 635 | F20: =+F21+B37 -> 538 | G20: =+G21+B37 -> 449 | H20: =+H21+B37 -> 368 | I20: =+I21+B37 -> 295 | J20: =+J21+B37 -> 230 | K20: =+K21+B37 -> 173 | L20: =+L21+B37 -> 124 | M20: =+M21+B37 -> 83 | N20: =+N21+B37 -> 50 | O20: =+P20+B37 -> 25 | P20: =+Q20+B37 -> 24 | Q20: =+R20+B37 -> 23 | R20: =+S20+B37 -> 22 | S20: =+T20+B37 -> 21 | T20: =+T19+B37 -> 20 | U20: =+U19+B37 -> 41 | V20: =+V19+B37 -> 70 | W20: =+W19+B37 -> 107 | X20: =+X19+B37 -> 152 | Y20: =+Y19+B37 -> 205 | Z20: =+Z19+B37 -> 266 | AA20: =+AA19+B37 -> 335 | AB20: =+AB19+B37 -> 412 | AC20: =+AC19+B37 -> 497 | AD20: =+AD19+B37 -> 590 | AE20: =+AE19+B37 -> 690 | AF20: =+AF19+B37 -> 799 | AG20: =+AG19+B37 -> 1037 | AH20: =+AH19+B37 -> 1162 | AI20: =+AI19+B37 -> 1295
A21: =+A22+B37 -> 1222 | B21: =+B22+B37 -> 1093 | C21: =+C22+B37 -> 851 | D21: =+D22+B37 -> 738 | E21: =+E22+B37 -> 634 | F21: =+F22+B37 -> 537 | G21: =+G22+B37 -> 448 | H21: =+H22+B37 -> 367 | I21: =+I22+B37 -> 294 | J21: =+J22+B37 -> 229 | K21: =+K22+B37 -> 172 | L21: =+L22+B37 -> 123 | M21: =+M22+B37 -> 82 | N21: =+O21+B37 -> 49 | O21: =+P21+B37 -> 48 | P21: =+Q21+B37 -> 47 | Q21: =+R21+B37 -> 46 | R21: =+S21+B37 -> 45 | S21: =+T21+B37 -> 44 | T21: =+U21+B37 -> 43 | U21: =+U20+B37 -> 42 | V21: =+V20+B37 -> 71 | W21: =+W20+B37 -> 108 | X21: =+X20+B37 -> 153 | Y21: =+Y20+B37 -> 206 | Z21: =+Z20+B37 -> 267 | AA21: =+AA20+B37 -> 336 | AB21: =+AB20+B37 -> 413 | AC21: =+AC20+B37 -> 498 | AD21: =+AD20+B37 -> 591 | AE21: =+AE20+B37 -> 691 | AF21: =+AF20+B37 -> 800 | AG21: =+AG20+B37 -> 1038 | AH21: =+AH20+B37 -> 1163 | AI21: =+AI20+B37 -> 1296
A22: =+A23+B37 -> 1221 | B22: =+B23+B37 -> 1092 | C22: =+C23+B37 -> 850 | D22: =+D23+B37 -> 737 | E22: =+E23+B37 -> 633 | F22: =+F23+B37 -> 536 | G22: =+G23+B37 -> 447 | H22: =+H23+B37 -> 366 | I22: =+I23+B37 -> 293 | J22: =+J23+B37 -> 228 | K22: =+K23+B37 -> 171 | L22: =+L23+B37 -> 122 | M22: =+N22+B37 -> 81 | N22: =+O22+B37 -> 80 | O22: =+P22+B37 -> 79 | P22: =+Q22+B37 -> 78 | Q22: =+R22+B37 -> 77 | R22: =+S22+B37 -> 76 | S22: =+T22+B37 -> 75 | T22: =+U22+B37 -> 74 | U22: =+V22+B37 -> 73 | V22: =+V21+B37 -> 72 | W22: =+W21+B37 -> 109 | X22: =+X21+B37 -> 154 | Y22: =+Y21+B37 -> 207 | Z22: =+Z21+B37 -> 268 | AA22: =+AA21+B37 -> 337 | AB22: =+AB21+B37 -> 414 | AC22: =+AC21+B37 -> 499 | AD22: =+AD21+B37 -> 592 | AE22: =+AE21+B37 -> 692 | AF22: =+AF21+B37 -> 801 | AG22: =+AG21+B37 -> 1039 | AH22: =+AH21+B37 -> 1164 | AI22: =+AI21+B37 -> 1297
A23: =+A24+B37 -> 1220 | B23: =+B24+B37 -> 1091 | C23: =+C24+B37 -> 849 | D23: =+D24+B37 -> 736 | E23: =+E24+B37 -> 632 | F23: =+F24+B37 -> 535 | G23: =+G24+B37 -> 446 | H23: =+H24+B37 -> 365 | I23: =+I24+B37 -> 292 | J23: =+J24+B37 -> 227 | K23: =+K24+B37 -> 170 | L23: =+M23+B37 -> 121 | M23: =+N23+B37 -> 120 | N23: =+O23+B37 -> 119 | O23: =+P23+B37 -> 118 | P23: =+Q23+B37 -> 117 | Q23: =+R23+B37 -> 116 | R23: =+S23+B37 -> 115 | S23: =+T23+B37 -> 114 | T23: =+U23+B37 -> 113 | U23: =+V23+B37 -> 112 | V23: =+W23+B37 -> 111 | W23: =+W22+B37 -> 110 | X23: =+X22+B37 -> 155 | Y23: =+Y22+B37 -> 208 | Z23: =+Z22+B37 -> 269 | AA23: =+AA22+B37 -> 338 | AB23: =+AB22+B37 -> 415 | AC23: =+AC22+B37 -> 500 | AD23: =+AD22+B37 -> 593 | AE23: =+AE22+B37 -> 693 | AF23: =+AF22+B37 -> 802 | AG23: =+AG22+B37 -> 1040 | AH23: =+AH22+B37 -> 1165 | AI23: =+AI22+B37 -> 1298
A24: =+A25+B37 -> 1219 | B24: =+B25+B37 -> 1090 | C24: =+C25+B37 -> 848 | D24: =+D25+B37 -> 735 | E24: =+E25+B37 -> 631 | F24: =+F25+B37 -> 534 | G24: =+G25+B37 -> 445 | H24: =+H25+B37 -> 364 | I24: =+I25+B37 -> 291 | J24: =+J25+B37 -> 226 | K24: =+L24+B37 -> 169 | L24: =+M24+B37 -> 168 | M24: =+N24+B37 -> 167 | N24: =+O24+B37 -> 166 | O24: =+P24+B37 -> 165 | P24: =+Q24+B37 -> 164 | Q24: =+R24+B37 -> 163 | R24: =+S24+B37 -> 162 | S24: =+T24+B37 -> 161 | T24: =+U24+B37 -> 160 | U24: =+V24+B37 -> 159 | V24: =+W24+B37 -> 158 | W24: =+X24+B37 -> 157 | X24: =+X23+B37 -> 156 | Y24: =+Y23+B37 -> 209 | Z24: =+Z23+B37 -> 270 | AA24: =+AA23+B37 -> 339 | AB24: =+AB23+B37 -> 416 | AC24: =+AC23+B37 -> 501 | AD24: =+AD23+B37 -> 594 | AE24: =+AE23+B37 -> 694 | AF24: =+AF23+B37 -> 803 | AG24: =+AG23+B37 -> 1041 | AH24: =+AH23+B37 -> 1166 | AI24: =+AI23+B37 -> 1299
A25: =+A26+B37 -> 1218 | B25: =+B26+B37 -> 1089 | C25: =+C26+B37 -> 847 | D25: =+D26+B37 -> 734 | E25: =+E26+B37 -> 630 | F25: =+F26+B37 -> 533 | G25: =+G26+B37 -> 444 | H25: =+H26+B37 -> 363 | I25: =+I26+B37 -> 290 | J25: =+K25+B37 -> 225 | K25: =+L25+B37 -> 224 | L25: =+M25+B37 -> 223 | M25: =+N25+B37 -> 222 | N25: =+O25+B37 -> 221 | O25: =+P25+B37 -> 220 | P25: =+Q25+B37 -> 219 | Q25: =+R25+B37 -> 218 | R25: =+S25+B37 -> 217 | S25: =+T25+B37 -> 216 | T25: =+U25+B37 -> 215 | U25: =+V25+B37 -> 214 | V25: =+W25+B37 -> 213 | W25: =+X25+B37 -> 212 | X25: =+Y25+B37 -> 211 | Y25: =+Y24+B37 -> 210 | Z25: =+Z24+B37 -> 271 | AA25: =+AA24+B37 -> 340 | AB25: =+AB24+B37 -> 417 | AC25: =+AC24+B37 -> 502 | AD25: =+AD24+B37 -> 595 | AE25: =+AE24+B37 -> 695 | AF25: =+AF24+B37 -> 804 | AG25: =+AG24+B37 -> 1042 | AH25: =+AH24+B37 -> 1167 | AI25: =+AI24+B37 -> 1300
A26: =+A27+B37 -> 1217 | B26: =+B27+B37 -> 1088 | C26: =+C27+B37 -> 846 | D26: =+D27+B37 -> 733 | E26: =+E27+B37 -> 629 | F26: =+F27+B37 -> 532 | G26: =+G27+B37 -> 443 | H26: =+H27+B37 -> 362 | I26: =+J26+B37 -> 289 | J26: =+K26+B37 -> 288 | K26: =+L26+B37 -> 287 | L26: =+M26+B37 -> 286 | M26: =+N26+B37 -> 285 | N26: =+O26+B37 -> 284 | O26: =+P26+B37 -> 283 | P26: =+Q26+B37 -> 282 | Q26: =+R26+B37 -> 281 | R26: =+S26+B37 -> 280 | S26: =+T26+B37 -> 279 | T26: =+U26+B37 -> 278 | U26: =+V26+B37 -> 277 | V26: =+W26+B37 -> 276 | W26: =X26+B37 -> 275 | X26: =+Y26+B37 -> 274 | Y26: =+Z26+B37 -> 273 | Z26: =+Z25+B37 -> 272 | AA26: =+AA25+B37 -> 341 | AB26: =+AB25+B37 -> 418 | AC26: =+AC25+B37 -> 503 | AD26: =+AD25+B37 -> 596 | AE26: =+AE25+B37 -> 696 | AF26: =+AF25+B37 -> 805 | AG26: =+AG25+B37 -> 1043 | AH26: =+AH25+B37 -> 1168 | AI26: =+AI25+B37 -> 1301
A27: =+A28+B37 -> 1216 | B27: =+B28+B37 -> 1087 | C27: =+C28+B37 -> 845 | D27: =+D28+B37 -> 732 | E27: =+E28+B37 -> 628 | F27: =+F28+B37 -> 531 | G27: =+G28+B37 -> 442 | H27: =+I27+B37 -> 361 | I27: =+J27+B37 -> 360 | J27: =+K27+B37 -> 359 | K27: =+L27+B37 -> 358 | L27: =+M27+B37 -> 357 | M27: =+N27+B37 -> 356 | N27: =+O27+B37 -> 355 | O27: =+P27+B37 -> 354 | P27: =+Q27+B37 -> 353 | Q27: =+R27+B37 -> 352 | R27: =+S27+B37 -> 351 | S27: =+T27++B37 -> 350 | T27: =+U27+B37 -> 349 | U27: =+V27+B37 -> 348 | V27: =+W27+B37 -> 347 | W27: =+X27+B37 -> 346 | X27: =+Y27+B37 -> 345 | Y27: =+Z27+B37 -> 344 | Z27: =+AA27+B37 -> 343 | AA27: =+AA26+B37 -> 342 | AB27: =+AB26+B37 -> 419 | AC27: =+AC26+B37 -> 504 | AD27: =+AD26+B37 -> 597 | AE27: =+AE26+B37 -> 697 | AF27: =+AF26+B37 -> 806 | AG27: =+AG26+B37 -> 1044 | AH27: =+AH26+B37 -> 1169 | AI27: =+AI26+B37 -> 1302
A28: =+A29+B37 -> 1215 | B28: =+B29+B37 -> 1086 | C28: =+C29+B37 -> 844 | D28: =+D29+B37 -> 731 | E28: =+E29+B37 -> 627 | F28: =+F29+B37 -> 530 | G28: =+H28+B37 -> 441 | H28: =+I28+B37 -> 440 | I28: =+J28+B37 -> 439 | J28: =+K28+B37 -> 438 | K28: =+L28+B37 -> 437 | L28: =+M28+B37 -> 436 | M28: =+N28+B37 -> 435 | N28: =+O28+B37 -> 434 | O28: =+P28+B37 -> 433 | P28: =+Q28+B37 -> 432 | Q28: =+R28+B37 -> 431 | R28: =+S28+B37 -> 430 | S28: =+T28+B37 -> 429 | T28: =+U28+B37 -> 428 | U28: =+V28+B37 -> 427 | V28: =+W28+B37 -> 426 | W28: =+X28+B37 -> 425 | X28: =+Y28+B37 -> 424 | Y28: =+Z28+B37 -> 423 | Z28: =+AA28+B37 -> 422 | AA28: =+AB28+B37 -> 421 | AB28: =+AB27+B37 -> 420 | AC28: =+AC27+B37 -> 505 | AD28: =+AD27+B37 -> 598 | AE28: =+AE27+B37 -> 698 | AF28: =+AF27+B37 -> 807 | AG28: =+AG27+B37 -> 1045 | AH28: =+AH27+B37 -> 1170 | AI28: =+AI27+B37 -> 1303
A29: =+A30+B37 -> 1214 | B29: =+B30+B37 -> 1085 | C29: =+C30+B37 -> 843 | D29: =+D30+B37 -> 730 | E29: =+E30+B37 -> 626 | F29: =+G29+B37 -> 529 | G29: =+H29+B37 -> 528 | H29: =+I29+B37 -> 527 | I29: =+J29+B37 -> 526 | J29: =+K29+B37 -> 525 | K29: =+L29+B37 -> 524 | L29: =+M29+B37 -> 523 | M29: =+N29+B37 -> 522 | N29: =+O29+B37 -> 521 | O29: =+P29+B37 -> 520 | P29: =+Q29+B37 -> 519 | Q29: =+R29+B37 -> 518 | R29: =+S29+B37 -> 517 | S29: =+T29+B37 -> 516 | T29: =+U29+B37 -> 515 | U29: =+V29+B37 -> 514 | V29: =+W29+B37 -> 513 | W29: =+X29+B37 -> 512 | X29: =+Y29+B37 -> 511 | Y29: =+Z29+B37 -> 510 | Z29: =+AA29+B37 -> 509 | AA29: =+AB29+B37 -> 508 | AB29: =+AC29+B37 -> 507 | AC29: =+AC28+B37 -> 506 | AD29: =+AD28+B37 -> 599 | AE29: =+AE28+B37 -> 699 | AF29: =+AF28+B37 -> 808 | AG29: =+AG28+B37 -> 1046 | AH29: =+AH28+B37 -> 1171 | AI29: =+AI28+B37 -> 1304
A30: =+A31+B37 -> 1213 | B30: =+B31+B37 -> 1084 | C30: =+C31+B37 -> 842 | D30: =+D31+B37 -> 729 | E30: =+F30+B37 -> 625 | F30: =+G30+B37 -> 624 | G30: =+H30+B37 -> 623 | H30: =+I30+B37 -> 622 | I30: =+J30+B37 -> 621 | J30: =+K30+B37 -> 620 | K30: =+L30+B37 -> 619 | L30: =+M30+B37 -> 618 | M30: =+N30+B37 -> 617 | N30: =+O30+B37 -> 616 | O30: =+P30+B37 -> 615 | P30: =+Q30+B37 -> 614 | Q30: =+R30+B37 -> 613 | R30: =+S30+B37 -> 612 | S30: =+T30+B37 -> 611 | T30: =+U30+B37 -> 610 | U30: =+V30+B37 -> 609 | V30: =+W30+B37 -> 608 | W30: =+X30+B37 -> 607 | X30: =+Y30+B37 -> 606 | Y30: =+Z30+B37 -> 605 | Z30: =+AA30+B37 -> 604 | AA30: =+AB30+B37 -> 603 | AB30: =+AC30+B37 -> 602 | AC30: =+AD30+B37 -> 601 | AD30: =+AD29+B37 -> 600 | AE30: =+AE29+B37 -> 700 | AF30: =+AF29+B37 -> 809 | AG30: =+AG29+B37 -> 1047 | AH30: =+AH29+B37 -> 1172 | AI30: =+AI29+B37 -> 1305
A31: =+A32+B37 -> 1212 | B31: =+B32+B37 -> 1083 | C31: =+C32+B37 -> 841 | D31: =+E31+B37 -> 728 | E31: =+F31+B37 -> 727 | F31: =+G31+B37 -> 726 | G31: =+H31+B37 -> 725 | H31: =+I31+B37 -> 724 | I31: =+J31+B37 -> 723 | J31: =+K31+B37 -> 722 | K31: =+L31+B37 -> 721 | L31: =+M31+B37 -> 720 | M31: =+N31+B37 -> 719 | N31: =+O31+B37 -> 718 | O31: =+P31+B37 -> 717 | P31: =+Q31+B37 -> 716 | Q31: =+R31+B37 -> 715 | R31: =+S31+B37 -> 714 | S31: =+T31+B37 -> 713 | T31: =+U31+B37 -> 712 | U31: =+V31+B37 -> 711 | V31: =+W31+B37 -> 710 | W31: =+X31+B37 -> 709 | X31: =+Y31+B37 -> 708 | Y31: =+Z31+B37 -> 707 | Z31: =+AA31+B37 -> 706 | AA31: =+AB31+B37 -> 705 | AB31: =+AC31+B37 -> 704 | AC31: =+AD31+B37 -> 703 | AD31: =+AE31+B37 -> 702 | AE31: =+AE30+B37 -> 701 | AF31: =+AF30+B37 -> 810 | AG31: =+AG30+B37 -> 1048 | AH31: =+AH30+B37 -> 1173 | AI31: =+AI30+B37 -> 1306
A32: =+A33+B37 -> 1211 | B32: =+B33+B37 -> 1082 | C32: =+D32+B37 -> 840 | D32: =+E32+B37 -> 839 | E32: =+F32+B37 -> 838 | F32: =+G32+B37 -> 837 | G32: =+H32+B37 -> 836 | H32: =+I32+B37 -> 835 | I32: =+J32+B37 -> 834 | J32: =+K32+B37 -> 833 | K32: =+L32+B37 -> 832 | L32: =+M32+B37 -> 831 | M32: =+N32+B37 -> 830 | N32: =+O32+B37 -> 829 | O32: =+P32+B37 -> 828 | P32: =+Q32+B37 -> 827 | Q32: =+R32+B37 -> 826 | R32: =+S32+B37 -> 825 | S32: =+T32+B37 -> 824 | T32: =+U32+B37 -> 823 | U32: =+V32+B37 -> 822 | V32: =+W32+B37 -> 821 | W32: =+X32+B37 -> 820 | X32: =+Y32+B37 -> 819 | Y32: =+Z32+B37 -> 818 | Z32: =+AA32+B37 -> 817 | AA32: =+AB32+B37 -> 816 | AB32: =+AC32+B37 -> 815 | AC32: =+AD32+B37 -> 814 | AD32: =+AE32+B37 -> 813 | AE32: =+AF32+B37 -> 812 | AF32: =+AF31+B37 -> 811 | AG32: =+AG31+B37 -> 1049 | AH32: =+AH31+B37 -> 1174 | AI32: =+AI31+B37 -> 1307
A33: =+A34+B37 -> 1210 | B33: =+C33+B37 -> 1081 | C33: =+D33+B37 -> 1080 | D33: =+E33+B37 -> 1079 | E33: =+F33+B37 -> 1078 | F33: =+G33+B37 -> 1077 | G33: =+H33+B37 -> 1076 | H33: =+I33+B37 -> 1075 | I33: =+J33+B37 -> 1074 | J33: =+K33+B37 -> 1073 | K33: =+L33+B37 -> 1072 | L33: =+M33+B37 -> 1071 | M33: =+N33+B37 -> 1070 | N33: =+O33+B37 -> 1069 | O33: =+P33+B37 -> 1068 | P33: =+Q33+B37 -> 1067 | Q33: =+R33+B37 -> 1066 | R33: =+S33+B37 -> 1065 | S33: =+T33+B37 -> 1064 | T33: =+U33+B37 -> 1063 | U33: =+V33+B37 -> 1062 | V33: =+W33+B37 -> 1061 | W33: =+X33+B37 -> 1060 | X33: =+Y33+B37 -> 1059 | Y33: =+Z33+B37 -> 1058 | Z33: =+AA33+B37 -> 1057 | AA33: =+AB33+B37 -> 1056 | AB33: =+AC33+B37 -> 1055 | AC33: =+AD33+B37 -> 1054 | AD33: =+AE33+B37 -> 1053 | AE33: =+AF33+B37 -> 1052 | AF33: =+AG33+B37 -> 1051 | AG33: =+AG32+B37 -> 1050 | AH33: =+AH32+B37 -> 1175 | AI33: =+AI32+B37 -> 1308
A34: =+B34+B37 -> 1209 | B34: =+C34+B37 -> 1208 | C34: =+D34+B37 -> 1207 | D34: =+E34+B37 -> 1206 | E34: =+F34+B37 -> 1205 | F34: =+G34+B37 -> 1204 | G34: =+H34+B37 -> 1203 | H34: =+I34+B37 -> 1202 | I34: =+J34+B37 -> 1201 | J34: =+K34+B37 -> 1200 | K34: =+L34+B37 -> 1199 | L34: =+M34+B37 -> 1198 | M34: =+N34+B37 -> 1197 | N34: =+O34+B37 -> 1196 | O34: =+P34+B37 -> 1195 | P34: =+Q34+B37 -> 1194 | Q34: =+R34+B37 -> 1193 | R34: =+S34+B37 -> 1192 | S34: =+T34+B37 -> 1191 | T34: =+U34+B37 -> 1190 | U34: =+V34+B37 -> 1189 | V34: =+W34+B37 -> 1188 | W34: =+X34+B37 -> 1187 | X34: =+Y34+B37 -> 1186 | Y34: =+Z34+B37 -> 1185 | Z34: =+AA34+B37 -> 1184 | AA34: =+AB34+B37 -> 1183 | AB34: =+AC34+B37 -> 1182 | AC34: =+AD34+B37 -> 1181 | AD34: =+AE34+B37 -> 1180 | AE34: =+AF34+B37 -> 1179 | AF34: =+AG34+B37 -> 1178 | AG34: =+AH34+B37 -> 1177 | AH34: =+AH33+B37 -> 1176 | AI34: =+AI33+B37 -> 1309
A35: =+B35+B37 -> 1344 | B35: =+C35+B37 -> 1343 | C35: =+D35+B37 -> 1342 | D35: =+E35+B37 -> 1341 | E35: =+F35+B37 -> 1340 | F35: =+G35+B37 -> 1339 | G35: =+H35+B37 -> 1338 | H35: =+I35+B37 -> 1337 | I35: =+J35+B37 -> 1336 | J35: =+K35+B37 -> 1335 | K35: =+L35+B37 -> 1334 | L35: =+M35+B37 -> 1333 | M35: =+N35+B37 -> 1332 | N35: =+O35+B37 -> 1331 | O35: =+P35+B37 -> 1330 | P35: =+Q35+B37 -> 1329 | Q35: =+R35+B37 -> 1328 | R35: =+S35+B37 -> 1327 | S35: =+T35+B37 -> 1326 | T35: =+U35+B37 -> 1325 | U35: =+V35+B37 -> 1324 | V35: =+W35+B37 -> 1323 | W35: =+X35+B37 -> 1322 | X35: =+Y35+B37 -> 1321 | Y35: =+Z35+B37 -> 1320 | Z35: =+AA35+B37 -> 1319 | AA35: =+AB35+B37 -> 1318 | AB35: =+AC35+B37 -> 1317 | AC35: =+AD35+B37 -> 1316 | AD35: =+AE35+B37 -> 1315 | AE35: =+AF35+B37 -> 1314 | AF35: =+AG35+B37 -> 1313 | AG35: =+AH35+B37 -> 1312 | AH35: =+AI35+B37 -> 1311 | AI35: =+AI34+B37 -> 1310
A36: Begin | B36: 0 | AJ36: 225
A37: Incre | B37: 1
A38: Name
